bitfinex/quotes_ETHUSD_20240730
["timestamp","ask_amount","ask_price","bid_price","bid_amount"]
[1722303280649,2.40209,3330.5,3329.8,2.40253]
[1722303281044,2.46057394,3330.4,3329.8,2.40253]
[1722303281561,0.55,3330.3,3329.8,2.40253]
[1722303282066,0.05844394,3330.2,3329.8,2.40253]
[1722303284548,0.05844394,3330.2,3329.4,2.3972]
[1722303284549,0.05844394,3330.2,3329.7,2.40261]
[1722303285127,0.05844394,3330.2,3329.4,2.4028]
[1722303285128,2.95234,3330.1,3329.4,2.4028]
[1722303285615,2.4610231,3330.0,3329.4,2.4028]
[1722303285816,2.40247,3329.9,3329.0,4.83941]
[1722303286050,2.40247,3329.9,3329.2,2.40293]
[1722303286351,0.05854114,3329.8,3329.2,2.40293]
[1722303286517,0.05854114,3329.8,3329.2,3.15179518]
[1722303287215,0.05854114,3329.8,3329.4,2.40277]
[1722303287417,0.05854114,3329.8,3329.7,2.40261]
[1722303287617,2.40212,3330.4,3329.2,0.74886518]
[1722303287618,2.40212,3330.4,3329.8,2.40251]
[1722303288230,2.40197,3330.6,3329.6,2.40268]
[1722303288431,4.77904,3330.8,3330.0,2.40234]
[1722303288637,0.55,3330.7,3330.0,2.40234]
[1722303289035,0.05847996,3330.6,3330.0,2.40234]
[1722303289251,0.55,3330.5,3330.0,2.40234]
[1722303289646,0.05847996,3330.4,3330.0,2.40234]
[1722303289847,2.40195,3330.7,3330.0,2.40234]
[1722303290177,0.05847996,3330.3,3330.0,2.40234]
[1722303290335,0.55,3330.6,3330.0,2.40234]
[1722303290663,2.95198,3330.6,3330.0,2.40234]
[1722303291059,0.05847996,3330.5,3329.8,2.40254]
[1722303291250,0.05847996,3330.5,3329.6,4.75536]
[1722303291448,0.55,3330.4,3329.6,2.40266]
[1722303291675,0.60860951,3330.4,3329.6,2.40266]
[1722303291876,2.40219,3330.3,3329.6,2.40266]
[1722303292077,0.55,3330.2,3329.6,2.40266]
[1722303292377,3.01087951,3330.2,3329.6,2.40266]
[1722303292581,0.60860951,3330.2,3329.6,2.40266]
[1722303294581,2.40233,3330.1,3329.4,2.40281]
[1722303294999,0.05856634,3330.0,3329.5,2.40276]
[1722303295342,2.40255,3329.8,3328.9,2.40317]
[1722303295546,2.40255,3329.8,3329.1,2.40305]
[1722303295981,0.05855914,3329.7,3329.1,2.40305]
[1722303296960,0.05855914,3329.7,3328.6,9.74339]
[1722303297274,2.40295,3329.3,3328.6,2.40339]
[1722303297450,2.40295,3329.3,3328.5,2.40347]
[1722303297651,0.05835757,3329.2,3328.4,2.3573]
[1722303297854,2.12212911,3329.6,3328.7,2.40333]
[1722303298161,0.05835757,3329.1,3328.8,0.06007271]
[1722303298357,2.95269,3329.6,3328.8,0.06007271]
[1722303298579,4.52692228,3329.6,3328.8,2.46328271]
[1722303298775,0.05835757,3329.5,3329.0,2.40306]
[1722303299002,0.05835757,3329.5,3329.0,2.46313263]
[1722303299220,0.05835757,3329.5,3329.0,2.40306]
[1722303299415,0.05835757,3329.5,3328.9,0.06007182]
[1722303299573,0.05835757,3329.5,3328.8,2.40325]
[1722303299778,1.63292658,3329.5,3328.8,2.46332277]
[1722303300121,0.05835757,3329.5,3329.0,2.40312]
[1722303300301,0.05835757,3329.5,3328.8,0.06007277]
[1722303300302,2.4139,3329.4,3328.8,2.40323]
[1722303300508,6.99936042,3329.4,3328.6,2.40341]
[1722303300676,5.42500517,3329.4,3328.6,2.40341]
[1722303300876,1.33828109,3329.4,3328.8,2.40326]
[1722303301076,0.60823517,3329.4,3328.8,2.40326]
[1722303301286,0.05823517,3329.4,3329.2,2.40292]
[1722303301593,1.5745971,3329.8,3328.8,2.40326]
[1722303301792,1.5745971,3329.8,3328.7,2.40332]
[1722303301793,0.05812718,3329.3,3328.7,2.40332]
[1722303301992,2.40276,3329.5,3328.7,2.40332]
[1722303302222,0.05811998,3329.2,3328.7,2.40332]
[1722303302433,2.40284,3329.4,3328.7,2.40332]
[1722303302720,2.46091678,3329.4,3328.6,2.301]
[1722303302893,2.46091678,3329.4,3328.6,4.70439]
[1722303303292,2.46091678,3329.4,3328.7,2.40333]
[1722303303804,0.05807678,3329.4,3329.0,2.40312]
[1722303304390,2.40262,3329.7,3329.0,2.40312]
[1722303304620,0.05806958,3329.3,3329.0,2.40312]
[1722303304832,0.55,3329.6,3329.0,2.40312]
[1722303305029,0.05806958,3329.2,3329.0,2.40312]
[1722303305332,0.05806958,3329.1,3328.8,2.40326]
[1722303305700,2.40277,3329.5,3328.8,2.40326]
[1722303305900,0.05806958,3329.0,3328.8,2.40326]
[1722303306097,2.40277,3329.5,3328.8,2.40326]
[1722303306314,2.95284,3329.4,3328.6,4.70439]
[1722303306511,5.50251678,3329.4,3328.3,2.40357]
[1722303306836,2.40291,3329.3,3328.6,2.4034]
[1722303307341,2.40291,3329.3,3328.4,2.40355]
[1722303307342,3.01101718,3329.2,3328.4,2.40355]
[1722303307542,2.46101718,3329.2,3328.4,2.40355]
[1722303307749,0.55,3329.1,3328.4,2.40355]
[1722303307906,0.60799038,3329.1,3328.4,2.40355]
[1722303308607,3.01105038,3329.1,3328.4,2.40355]
[1722303308809,1.06659206,3329.1,3328.3,2.40359]
[1722303309019,2.40317,3329.0,3328.3,2.40359]
[1722303309218,0.55,3328.9,3328.3,2.40359]
[1722303309718,0.05791118,3328.8,3328.3,2.40359]
[1722303309920,0.05791118,3328.8,3328.5,2.40348]
[1722303310103,0.05791118,3328.8,3328.3,2.40362]
[1722303310304,2.4031,3329.1,3328.3,2.40362]
[1722303310504,0.05789318,3328.7,3328.3,2.40362]
[1722303310743,0.05789318,3328.7,3328.1,2.40376]
[1722303310744,0.05789318,3328.7,3328.4,2.40354]
[1722303310951,0.55,3329.0,3328.4,2.40354]
[1722303311237,0.05789318,3328.6,3328.3,2.40361]
[1722303311443,0.29531,3328.9,3328.3,2.40361]
[1722303311926,0.05789318,3328.8,3328.3,2.40361]
[1722303312331,5.44207,3328.7,3328.0,2.40384]
[1722303312710,0.05784994,3328.6,3328.0,2.40384]
[1722303313350,0.05784994,3328.6,3327.6,2.40412]
[1722303313351,0.36750493,3328.6,3327.6,2.40412]
[1722303313511,2.40367,3328.3,3327.6,2.40412]
[1722303313939,2.4887,3328.7,3327.7,0.06009729]
[1722303314139,0.05766989,3328.2,3328.1,2.40372]
[1722303314360,2.4887,3328.7,3328.1,2.644092]
[1722303314657,0.05763029,3328.2,3328.1,2.40372]
[1722303314861,2.4887,3328.7,3328.2,2.40369]
[1722303315208,0.05763029,3328.6,3328.2,2.40369]
[1722303315911,0.05763029,3328.6,3328.0,2.40379]
[1722303316355,0.55259132,3328.6,3327.9,2.40387]
[1722303316519,0.55,3328.5,3327.9,2.40387]
[1722303316731,0.05755826,3328.4,3327.9,2.40387]
[1722303317169,2.3057,3328.3,3327.7,2.40406]
[1722303317374,2.3057,3328.3,3327.8,2.40398]
[1722303317886,0.05755826,3328.2,3327.8,2.40398]
[1722303318100,2.3057,3328.3,3327.7,2.40406]
[1722303318391,0.60755826,3328.2,3327.4,2.40426]
[1722303318555,0.60755826,3328.2,3328.1,4.80754]
[1722303318556,0.05755826,3328.2,3328.1,4.80754]
[1722303318738,2.3767,3329.3,3328.6,2.40337]
[1722303318937,0.53531875,3329.2,3328.7,2.40333]
[1722303319395,0.05736375,3329.2,3328.9,2.40319]
[1722303319753,2.40269,3329.6,3328.9,2.40319]
[1722303319973,2.40269,3329.6,3328.1,2.2862]
[1722303319974,4.6978,3329.1,3328.1,2.2862]
[1722303320165,2.2947,3329.1,3328.0,2.40381]
[1722303320469,2.40349,3328.5,3327.5,2.4042]
[1722303320664,0.469819,3328.4,3327.5,2.4042]
[1722303321002,2.95363,3328.3,3327.6,2.40407]
[1722303321278,2.40383,3328.1,3327.3,2.40434]
[1722303321664,0.55,3328.3,3327.4,2.40426]
[1722303321665,0.60748262,3328.0,3327.4,2.40426]
[1722303321886,0.05748262,3328.0,3327.8,2.40398]
[1722303322200,2.2947,3328.6,3327.8,2.40392]
[1722303322385,0.05748262,3327.9,3327.8,2.46401695]
[1722303322542,4.75848,3329.0,3328.2,2.40367]
[1722303322740,0.05748262,3328.9,3328.2,2.40367]
[1722303323003,0.60748262,3328.9,3328.2,2.40367]
[1722303323144,3.01068262,3328.9,3328.1,2.40374]
[1722303323342,3.01068262,3328.9,3328.2,2.40368]
[1722303323541,0.05748262,3328.9,3328.4,2.40355]
[1722303324090,0.05748262,3328.9,3328.5,2.46352505]
[1722303324382,2.40292,3329.3,3328.5,2.46352505]
[1722303324546,0.05741415,3328.8,3328.5,2.46352505]
[1722303325047,0.05757985,3328.7,3328.6,2.4034]
[1722303325243,0.05757985,3328.7,3328.5,0.06008505]
[1722303325456,0.05757985,3328.6,3328.3,2.40362]
[1722303325755,2.40313,3329.0,3327.9,2.40384]
[1722303326073,0.60765188,3328.9,3328.0,0.06008598]
[1722303326274,0.60765188,3328.9,3328.4,2.40353]
[1722303326575,3.01085188,3328.9,3328.2,2.40369]
[1722303326876,3.01085188,3328.9,3327.8,2.4367]
[1722303326877,2.2822,3328.7,3328.1,2.40377]
[1722303327078,0.05769871,3328.6,3328.1,2.40377]
[1722303328163,0.05769871,3328.6,3328.4,2.40348]
[1722303328364,0.55,3328.9,3328.3,2.40361]
[1722303328676,0.05760148,3328.8,3328.5,2.40341]
[1722303328869,0.05760148,3328.8,3328.4,2.40353]
[1722303329069,2.95307,3329.1,3328.4,2.40353]
[1722303329277,2.95307,3329.1,3328.0,2.40378]
[1722303329278,0.55,3329.1,3328.0,2.40378]
[1722303329514,2.40322,3328.9,3328.1,2.40377]
[1722303329825,0.84788384,3328.8,3328.1,2.40377]
[1722303330170,3.25116384,3328.8,3327.9,2.40387]
[1722303330484,2.40334,3328.7,3328.0,2.40384]
[1722303330644,0.60756905,3328.6,3328.0,2.40384]
[1722303330840,2.4229,3328.5,3327.9,2.40391]
[1722303331040,0.05756545,3328.4,3327.7,2.40405]
[1722303331297,0.05756545,3328.4,3327.8,0.540405]
[1722303331600,0.05756545,3328.4,3328.0,2.40383]
[1722303332075,0.11361396,3328.4,3328.0,2.40383]
[1722303332262,0.11361396,3328.4,3327.8,2.944355]
[1722303333282,0.11361396,3328.4,3327.9,2.40391]
[1722303333482,0.11361396,3328.4,3328.0,2.40382]
[1722303333681,0.11361396,3328.4,3328.1,2.40376]
[1722303333844,0.05604851,3328.4,3328.1,2.40376]
[1722303334180,3.193612,3328.8,3327.9,2.40388]
[1722303334181,0.11341945,3328.3,3327.9,2.40388]
[1722303334384,0.11341945,3328.3,3327.8,2.40399]
[1722303334691,0.11343025,3328.2,3327.8,2.40399]
[1722303335069,0.3213222,3328.7,3327.8,2.40399]
[1722303335397,0.55,3328.6,3328.0,2.40384]
[1722303335597,0.66343385,3328.6,3328.0,2.40384]
[1722303336376,0.66343385,3328.6,3327.8,2.40398]
[1722303336377,2.40353,3328.5,3327.8,2.40398]
[1722303336582,2.95356,3328.4,3327.6,2.40412]
[1722303336758,2.40364,3328.3,3327.6,2.40412]
[1722303337161,0.11343746,3328.2,3327.6,2.40412]
[1722303337482,2.51718746,3328.2,3327.6,2.40411]
[1722303337683,2.51718746,3328.2,3327.9,2.40386]
[1722303337684,0.11343746,3328.2,3327.9,2.40386]
[1722303338057,0.11332578,3328.1,3327.9,2.40386]
[1722303338386,2.9729,3328.4,3327.9,2.40386]
[1722303338578,0.11331137,3328.0,3327.7,2.40405]
[1722303338882,2.9729,3328.4,3327.7,2.40405]
[1722303339060,0.11331137,3327.9,3327.7,2.40405]
[1722303339254,2.40367,3328.3,3327.6,2.40411]
[1722303339447,0.11331497,3327.8,3327.6,2.40411]
[1722303339646,2.40367,3328.3,3327.6,2.40411]
[1722303339858,0.11329697,3327.7,3327.6,2.40411]
[1722303340076,0.55,3328.2,3327.7,2.404]
[1722303340278,0.55,3328.3,3327.7,2.404]
[1722303340481,0.11328256,3328.1,3327.7,2.404]
[1722303340689,0.11327536,3328.2,3327.7,2.404]
[1722303340902,0.55,3328.1,3327.7,2.404]
[1722303341050,0.55,3328.1,3327.9,2.40391]
[1722303341051,0.11327536,3328.1,3327.9,2.40391]
[1722303341252,0.11327536,3328.1,3327.7,2.404]
[1722303341450,0.55,3328.3,3327.7,2.404]
[1722303341956,0.11327536,3328.2,3327.7,2.404]
[1722303342158,0.55,3328.1,3327.7,2.404]
[1722303342380,0.11327176,3328.0,3327.6,2.40412]
[1722303342958,0.11327176,3328.0,3327.4,2.40427]
[1722303342959,0.11327176,3328.0,3327.7,2.40405]
[1722303343285,0.11327176,3328.0,3327.8,2.40398]
[1722303343488,0.11327176,3328.0,3327.9,2.46400858]
[1722303343788,2.381,3328.8,3328.2,2.40367]
[1722303343984,0.1094315,3328.7,3328.2,2.40367]
[1722303344852,2.5127715,3328.7,3328.0,2.40379]
[1722303345171,2.5127715,3328.7,3327.8,2.40395]
[1722303345172,2.40348,3328.5,3327.8,2.40395]
[1722303345359,0.10952545,3328.4,3327.8,2.40395]
[1722303345564,0.10952545,3328.4,3327.6,2.40411]
[1722303345565,0.55,3328.3,3327.6,2.40411]
[1722303345763,2.49227967,3328.2,3327.6,2.40411]
[1722303346084,0.55,3328.1,3327.5,2.46427826]
[1722303346288,0.55,3328.1,3327.5,2.71070609]
[1722303346485,0.10957244,3328.0,3327.7,2.40404]
[1722303347772,0.10957244,3328.0,3327.5,2.40418]
[1722303348594,2.95394,3327.9,3327.2,2.40441]
[1722303349011,2.3815,3327.7,3326.4,2.446]
[1722303349160,2.40442,3327.3,3326.5,2.40492]
[1722303349364,0.34996747,3327.2,3326.5,2.40492]
[1722303349692,0.55,3327.1,3326.7,2.40476]
[1722303350002,0.10923629,3327.0,3326.7,2.40476]
[1722303350388,0.10923629,3327.0,3326.8,2.4047]
[1722303350607,2.3815,3327.7,3326.9,2.40464]
[1722303350780,0.55,3327.6,3327.1,2.40448]
[1722303350959,1.24107254,3327.6,3327.0,2.40456]
[1722303351905,1.24107254,3327.6,3326.8,2.40466]
[1722303352221,2.40428,3327.4,3326.5,2.40491]
[1722303352357,1.57515536,3327.5,3326.6,2.40485]
[1722303352559,1.07203579,3327.4,3326.9,2.40463]
[1722303352930,0.52203579,3327.4,3326.9,2.40463]
[1722303353218,0.55,3327.3,3327.0,2.40456]
[1722303353566,0.55,3327.5,3327.0,2.40456]
[1722303354392,2.40442,3327.2,3326.6,2.40479]
[1722303354584,0.790442,3327.1,3326.6,2.40479]
[1722303354780,0.55,3327.1,3326.6,2.40479]
[1722303355074,0.55,3327.3,3326.4,0.06012028]
[1722303355301,0.55,3327.3,3326.9,2.40463]
[1722303357462,0.55,3327.3,3326.7,2.40478]
[1722303357663,1.080561,3327.3,3326.8,2.4047]
[1722303359717,3.484961,3327.3,3326.6,2.40483]
[1722303361606,2.40443,3327.2,3326.4,2.40498]
[1722303361772,2.3601,3327.0,3326.4,2.40498]
[1722303362107,2.3601,3327.0,3326.3,0.1451568]
[1722303362108,0.55,3326.9,3326.3,0.1451568]
[1722303362406,0.55,3326.9,3326.4,2.40499]
[1722303362620,0.55,3326.9,3326.7,2.40477]
[1722303363026,0.55,3326.9,3326.5,2.40491]
[1722303363789,0.84101,3326.9,3326.5,2.40491]
[1722303363995,0.84101,3326.9,3326.3,2.5502168]
[1722303364224,0.10841179,3326.8,3326.3,2.5502168]
[1722303364422,0.10841179,3326.8,3326.4,2.40498]
[1722303365208,0.10841179,3326.8,3326.3,0.1451568]
[1722303365428,0.55,3326.7,3326.3,0.1451568]
[1722303365742,0.10840456,3326.6,3326.3,0.1451568]
[1722303365932,0.55,3326.7,3326.3,0.1451568]
[1722303366111,0.55,3326.8,3326.3,0.1451568]
[1722303366434,2.51319456,3326.7,3326.3,0.1451568]
[1722303366732,2.4833,3326.5,3326.3,0.1451568]
[1722303366928,0.10837923,3326.4,3326.3,0.1451568]
[1722303367102,0.65837923,3326.4,3326.3,0.1451568]
[1722303367302,3.06337923,3326.4,3326.3,0.1451568]
[1722303367719,0.65837923,3326.4,3326.3,0.1451568]
[1722303368123,0.10837923,3326.4,3326.3,2.5502268]
[1722303368334,2.4723,3327.0,3326.3,2.5502268]
[1722303368519,0.65832496,3326.9,3326.3,2.5502268]
[1722303369246,0.65832496,3326.9,3326.3,0.1451568]
[1722303369447,0.65832496,3326.9,3326.3,2.5502068]
[1722303369621,0.10832496,3326.9,3326.4,2.40499]
[1722303369826,0.10832496,3326.9,3326.5,2.40491]
[1722303370033,12.0832,3327.3,3326.5,2.40491]
[1722303370034,9.6788,3327.3,3326.5,2.40491]
[1722303370236,0.10828876,3326.8,3326.4,2.40499]
[1722303370431,2.40443,3327.2,3326.5,2.40491]
[1722303370634,0.10828876,3326.7,3326.5,2.40491]
[1722303370836,1.208323,3327.1,3326.5,2.40491]
[1722303371132,0.55,3327.0,3326.5,2.40491]
[1722303371334,0.10828876,3326.9,3326.5,2.40491]
[1722303371534,0.55,3326.8,3326.5,2.40491]
[1722303371911,0.10828876,3326.7,3326.5,2.40491]
[1722303372112,0.9112753,3327.0,3326.5,2.40491]
[1722303372343,0.10828876,3326.9,3326.5,2.40491]
[1722303372550,0.55,3326.8,3326.3,0.1451568]
[1722303372738,0.3612753,3327.0,3326.4,0.06012047]
[1722303372935,1.208323,3327.1,3326.9,2.40463]
[1722303373116,0.55,3327.0,3326.9,2.40463]
[1722303373313,0.55,3327.0,3326.5,2.4049]
[1722303373536,0.55,3327.0,3326.6,2.4048]
[1722303373849,0.55,3327.0,3326.7,2.40478]
[1722303374047,0.55,3327.2,3326.7,2.40478]
[1722303374252,0.295436,3327.1,3326.7,2.40478]
[1722303374453,0.55,3327.0,3326.7,2.40478]
[1722303374748,0.55,3327.0,3326.5,2.40489]
[1722303375135,0.55,3327.1,3326.5,2.40489]
[1722303375450,2.700013,3327.0,3326.3,2.5501868]
[1722303375752,0.55,3326.9,3326.3,2.5501868]
[1722303376348,0.55,3326.9,3326.4,2.40499]
[1722303376513,0.55,3326.9,3326.3,2.5502168]
[1722303376715,0.55,3326.9,3326.6,2.40485]
[1722303377067,2.4959,3327.6,3326.8,2.652]
[1722303377216,1.88344249,3328.3,3327.2,2.40438]
[1722303377217,4.73293,3328.2,3327.2,2.40438]
[1722303377420,3.9731054,3328.4,3327.3,0.06010238]
[1722303377754,2.40357,3328.4,3327.7,2.40404]
[1722303377952,2.643987,3328.3,3327.7,2.40404]
[1722303378252,2.643987,3328.3,3327.5,2.40419]
[1722303378437,2.4035,3328.5,3327.6,2.40413]
[1722303378636,2.4035,3328.5,3327.8,2.40396]
[1722303378837,2.4035,3328.5,3327.3,0.06010238]
[1722303378838,2.40357,3328.4,3327.7,2.40405]
[1722303379039,4.73261,3328.6,3327.7,2.40405]
[1722303379238,0.10503806,3328.3,3327.8,2.40393]
[1722303379555,0.10503806,3328.2,3327.7,2.40402]
[1722303379753,6.29546489,3328.9,3328.1,2.40377]
[1722303380049,0.10503806,3328.8,3328.1,2.40377]
[1722303380828,0.10503806,3328.8,3328.2,2.40367]
[1722303381652,0.10503806,3328.8,3327.8,2.40398]
[1722303381839,0.10503806,3328.8,3327.6,2.3725]
[1722303381840,2.40349,3328.5,3327.9,2.40391]
[1722303382048,0.55,3328.4,3328.0,2.40378]
[1722303382352,0.10503806,3328.3,3328.0,2.40378]
[1722303382552,2.95337,3328.7,3328.0,2.40378]
[1722303382755,0.40037506,3328.6,3328.0,2.40378]
[1722303382921,0.55,3328.5,3328.0,2.40378]
[1722303383254,2.3218,3328.9,3328.1,0.06009473]
[1722303383453,0.10503806,3328.4,3328.3,2.40357]
[1722303383659,2.3218,3328.9,3328.3,2.40357]
[1722303383821,0.10537536,3328.4,3328.3,2.40357]
[1722303384157,0.10537536,3328.4,3327.7,2.40404]
[1722303384158,3.97299332,3329.2,3328.4,2.40354]
[1722303384352,3.0,3329.1,3328.4,2.40354]
[1722303384554,5.40301,3329.2,3328.4,2.40354]
[1722303384756,1.72781633,3329.1,3327.6,5.0245]
[1722303385064,6.37481332,3329.7,3329.0,2.40306]
[1722303385228,2.4022,3329.7,3329.1,2.40304]
[1722303385556,6.37444332,3330.2,3329.1,2.40304]
[1722303385761,2.4022,3330.2,3329.4,2.4028]
[1722303385935,4.80451,3330.2,3329.4,2.4028]
[1722303386133,2.4024,3330.0,3329.2,2.40295]
[1722303386666,4.80448,3330.2,3329.4,2.40278]
[1722303386825,0.480448,3330.1,3329.5,2.40274]
[1722303387027,4.80415,3330.7,3329.5,0.06006861]
[1722303387334,4.80415,3330.7,3328.8,6.5929]
[1722303387335,2.40182,3330.9,3330.1,2.40227]
[1722303387722,2.40182,3330.9,3330.2,2.40224]
[1722303388163,2.40182,3330.9,3329.9,2.40245]
[1722303388164,2.40182,3330.9,3330.0,2.40237]
[1722303388457,2.642012,3330.8,3330.1,2.40232]
[1722303388627,2.642012,3330.8,3329.8,2.40254]
[1722303388824,2.40205,3330.5,3329.7,2.4026]
[1722303389024,2.40213,3330.4,3329.7,2.4026]
[1722303389361,2.40213,3330.4,3329.6,2.40267]
[1722303389541,2.642413,3330.3,3329.6,2.40267]
[1722303389743,0.240213,3330.3,3329.7,2.40261]
[1722303389944,0.55,3330.2,3329.8,2.40253]
[1722303390440,0.55,3330.2,3329.6,2.40265]
[1722303390834,0.55,3330.2,3329.7,2.4026]
[1722303391062,0.8692323,3330.2,3329.7,2.4026]
[1722303391240,3.2715023,3330.2,3329.1,2.40299]
[1722303391441,3.2715023,3330.2,3329.2,2.40291]
[1722303391842,0.1030147,3330.1,3329.2,2.40291]
[1722303392037,2.95246,3330.0,3329.0,5.40311]
[1722303392223,2.40247,3329.9,3328.3,2.7419]
[1722303392430,2.95258,3329.8,3329.1,2.40304]
[1722303392659,2.95258,3329.8,3328.4,2.4035]
[1722303392660,0.55,3329.7,3329.4,2.40281]
[1722303393119,0.1028843,3329.6,3329.5,2.40276]
[1722303394116,0.1028843,3329.6,3329.3,2.40287]
[1722303394468,0.1028843,3329.6,3329.4,2.40282]
[1722303394683,0.1028843,3329.6,3328.9,2.40313]
[1722303394911,0.1028843,3329.6,3328.7,2.40332]
[1722303395220,2.95267,3329.7,3328.5,3.0]
[1722303395221,0.85555543,3329.5,3329.0,2.40312]
[1722303395373,0.85555543,3329.5,3328.9,2.46325255]
[1722303395579,0.3192323,3330.2,3329.2,2.40297]
[1722303395800,0.3192323,3330.2,3328.9,0.06007255]
[1722303395801,0.55,3330.1,3329.5,2.40274]
[1722303395964,2.95235,3330.1,3329.1,2.40305]
[1722303396165,2.40247,3329.9,3329.1,2.40305]
[1722303396398,0.32715823,3330.0,3329.3,2.40284]
[1722303396593,0.55,3329.9,3329.3,2.40284]
[1722303397207,0.55,3329.9,3329.5,2.40275]
[1722303397694,0.55,3330.1,3329.5,2.40275]
[1722303397967,0.32715123,3330.0,3329.1,2.40303]
[1722303398215,2.40257,3329.8,3328.9,2.40318]
[1722303398368,2.4027,3329.6,3328.9,2.40318]
[1722303398714,0.55,3329.5,3329.1,2.40303]
[1722303399026,2.40254,3329.8,3329.1,2.40303]
[1722303399164,0.845254,3329.7,3329.1,2.40303]
[1722303399798,2.40279,3329.5,3328.8,2.40325]
[1722303400823,2.95261,3329.7,3328.9,2.40319]
[1722303401229,0.55,3329.7,3328.9,2.46325257]
[1722303401440,2.40223,3330.3,3329.0,2.4673]
[1722303401740,4.84295,3330.5,3329.6,2.40268]
[1722303401741,5.94232,3330.4,3329.6,2.40268]
[1722303402044,2.40179,3330.9,3330.2,2.40225]
[1722303402045,2.40176,3330.9,3330.2,2.40225]
[1722303402513,2.4019,3330.7,3330.0,2.40236]
[1722303402679,2.4019,3330.7,3329.9,2.40244]
[1722303402890,2.4019,3330.7,3329.5,2.652]
[1722303402891,2.4019,3330.7,3330.0,2.40238]
[1722303403092,2.4019,3330.7,3330.1,2.40232]
[1722303403429,2.40205,3330.5,3329.6,2.40268]
[1722303404376,0.55,3330.4,3329.6,2.40268]
[1722303404569,0.55,3330.4,3329.5,2.652]
[1722303404871,0.55,3330.4,3329.0,2.4673]
[1722303405107,2.40255,3329.8,3329.0,2.4673]
[1722303405302,2.4027,3329.6,3328.6,7.34]
[1722303405519,2.40277,3329.5,3328.6,2.4034]
[1722303405678,0.55,3329.5,3328.6,2.4034]
[1722303405870,0.10353642,3329.4,3328.6,2.4034]
[1722303406069,0.10353642,3329.4,3328.7,2.40333]
[1722303406433,0.10348209,3329.3,3328.5,4.68905]
[1722303406610,0.10348209,3329.3,3328.7,2.40332]
[1722303406761,2.95265,3329.7,3328.7,2.40332]
[1722303406965,0.10348209,3329.6,3328.7,2.40332]
[1722303407196,0.55,3329.5,3328.7,2.40332]
[1722303407474,0.55,3329.5,3328.5,5.66354]
[1722303407697,0.10334805,3329.4,3328.6,2.40339]
[1722303407912,0.55,3329.5,3328.6,2.40339]
[1722303408095,0.55,3329.6,3328.7,2.40333]
[1722303408421,0.10334805,3329.5,3328.8,0.06007245]
[1722303408727,0.10334805,3329.5,3328.5,2.2856]
[1722303408728,0.10334805,3329.5,3329.1,2.403]
[1722303409013,0.1031742,3329.4,3328.9,2.40319]
[1722303409199,2.4025,3329.9,3328.9,2.40319]
[1722303409381,0.65317782,3329.8,3328.9,2.40319]
[1722303410608,3.05571782,3329.8,3328.9,2.40319]
[1722303411336,0.65317782,3329.8,3329.0,2.40311]
[1722303411477,1.0127619,3329.8,3329.0,2.40311]
[1722303411784,1.0127619,3329.8,3328.5,2.2856]
[1722303411986,2.40288,3329.4,3328.3,2.40357]
[1722303412176,2.40313,3329.0,3328.2,7.34]
[1722303412379,0.10324666,3328.9,3328.2,9.7437]
[1722303412580,0.10324666,3328.9,3328.0,2.4447]
[1722303412581,2.95291,3329.3,3328.1,2.40375]
[1722303412807,0.10324666,3329.2,3328.4,2.40355]
[1722303413004,0.55,3329.1,3328.2,2.888495]
[1722303413180,2.95311,3329.1,3328.0,3.9447]
[1722303413381,2.95311,3329.1,3328.1,2.4037]
[1722303413607,2.50626884,3329.0,3328.0,2.4447]
[1722303413849,2.40342,3328.6,3327.7,3.54]
[1722303414054,2.40361,3328.4,3327.4,7.34]
[1722303414178,2.40361,3328.4,3327.5,0.06009676]
[1722303414382,2.95363,3328.3,3327.5,0.06009676]
[1722303414704,0.10291333,3328.2,3327.5,2.46423676]
[1722303414902,2.40385,3328.0,3327.5,0.30652044]
[1722303415076,2.50662333,3328.2,3327.2,2.574]
[1722303415077,2.404,3327.8,3327.2,2.574]
[1722303415281,3.54,3327.8,3326.7,2.3774]
[1722303415657,5.38922,3327.7,3326.5,2.40487]
[1722303415801,5.38922,3327.7,3326.3,4.9276168]
[1722303415802,0.55,3327.7,3326.8,2.40465]
[1722303416008,0.10246031,3327.6,3326.9,2.40463]
[1722303416321,0.10246031,3327.6,3327.0,2.46464017]
[1722303416484,0.10246031,3327.6,3327.0,0.06011017]
[1722303416880,0.10246031,3327.6,3327.0,2.46466017]
[1722303417157,3.54,3327.8,3327.0,2.40455]
[1722303417282,0.10227537,3327.5,3327.3,2.40434]
[1722303417483,0.55,3328.2,3327.3,2.46444115]
[1722303417686,3.54,3328.3,3327.5,2.4042]
[1722303418385,0.10192733,3328.2,3327.5,2.4042]
[1722303418604,0.10192733,3328.2,3327.4,2.40427]
[1722303419037,0.10192733,3328.2,3327.6,2.40406]
[1722303419251,0.10192733,3328.2,3327.7,0.06009502]
[1722303419399,3.0,3328.8,3327.7,0.06009502]
[1722303419400,8.94313,3329.0,3328.0,2.40382]
[1722303419765,0.10203613,3328.9,3328.3,2.40362]
[1722303420305,0.10203613,3328.9,3328.4,2.46362647]
[1722303420633,2.40304,3329.2,3328.3,0.24637081]
[1722303420832,0.102076,3328.8,3328.2,2.40364]
[1722303421027,0.102076,3328.8,3327.9,2.3953]
[1722303421028,0.102076,3328.8,3328.1,2.40376]
[1722303421215,2.40322,3328.9,3327.9,4.79921]
[1722303421549,2.50558813,3328.8,3327.7,2.404]
[1722303421759,2.40356,3328.4,3327.4,5.40426]
[1722303421902,2.40356,3328.4,3327.5,0.56576955]
[1722303422105,0.55,3328.3,3327.4,2.40426]
[1722303422353,0.65226813,3328.3,3327.4,2.40426]
[1722303422688,3.05589813,3328.3,3327.3,0.2534355]
[1722303422820,2.40375,3328.2,3327.2,2.70541]